bitfinex-derivatives/quotes_BNBF0:USTF0_20250524
["timestamp","ask_amount","ask_price","bid_price","bid_amount"]
[1748055957087,1.57252213,665.19,664.56,4.031]
[1748055957286,0.30058463,665.37,664.56,4.031]
[1748055957287,1.57252213,665.18,664.56,4.031]
[1748055957486,1.57252213,665.17,664.56,4.031]
[1748055957788,1.57252213,665.16,664.56,4.031]
[1748055957979,1.57252213,665.15,664.56,4.031]
[1748055958180,1.57252213,665.14,664.56,4.031]
[1748055958381,1.57252213,665.13,664.56,4.031]
[1748055958579,1.57252213,665.12,664.56,4.031]
[1748055958783,1.57248059,665.11,664.56,4.031]
[1748055958985,1.57248059,665.1,664.56,4.031]
[1748055959183,1.57248059,665.09,664.56,4.031]
[1748055959383,1.57248059,665.08,664.56,4.031]
[1748055959583,1.57248059,665.07,664.56,4.031]
[1748055959788,1.57248059,665.06,664.56,4.031]
[1748055959991,1.08790547,665.05,664.59,1.02756597]
[1748055960189,1.08790547,665.04,664.59,1.02756597]
[1748055960390,1.08790547,665.03,664.59,1.02756597]
[1748055960590,1.08790547,665.02,664.59,1.02756597]
[1748055960785,1.08790547,665.01,664.59,1.02756597]
[1748055961086,1.49302841,665.23,664.59,1.02756597]
[1748055961291,1.57236323,665.22,664.59,1.02756597]
[1748055961489,1.57236323,665.21,664.59,1.02756597]
[1748055961690,1.49302841,665.23,664.59,1.02756597]
[1748055961691,1.57236323,665.2,664.59,1.02756597]
[1748055961992,1.57213267,665.19,664.59,1.02756597]
[1748055962189,1.57213267,665.18,664.59,1.02756597]
[1748055962389,1.57213267,665.17,664.59,1.02756597]
[1748055962590,1.57203044,665.16,664.59,1.02756597]
[1748055962791,1.57203044,665.15,664.59,1.02756597]
[1748055962989,1.57203044,665.14,664.59,1.02756597]
[1748055963191,1.08766236,665.13,664.59,1.02756597]
[1748055963489,1.08766236,665.12,664.59,1.02756597]
[1748055963691,1.08766236,665.11,664.6,1.537]
[1748055963891,1.08766236,665.1,664.6,1.537]
[1748055964091,1.49302841,665.34,664.63,1.02756597]
[1748055964294,1.57103767,665.33,664.63,1.02756597]
[1748055964491,1.57103767,665.32,664.63,1.02756597]
[1748055964688,1.49302841,665.34,664.63,1.02756597]
[1748055964689,1.57103767,665.31,664.63,1.02756597]
[1748055964891,1.57103767,665.3,664.63,1.02756597]
[1748055965093,1.57103767,665.29,664.63,1.02756597]
[1748055965294,1.57103767,665.28,664.63,1.02756597]
[1748055965493,1.57103767,665.27,664.63,1.02756597]
[1748055965693,1.57074847,665.26,664.63,1.02756597]
[1748055965897,1.57074847,665.25,664.63,1.02756597]
[1748055966095,1.57074847,665.24,664.63,1.02756597]
[1748055966296,1.57074847,665.23,664.63,1.02756597]
[1748055966595,1.57074847,665.22,664.63,1.02756597]
[1748055966797,1.57074847,665.21,664.63,1.02756597]
[1748055966999,1.57074847,665.2,664.63,1.02756597]
[1748055967197,1.57074847,665.19,664.6,1.537]
[1748055967395,1.57059863,665.18,664.6,1.537]
[1748055967592,1.08682323,665.17,664.6,1.537]
[1748055967797,1.08682323,665.16,664.6,1.537]
[1748055967998,1.08682323,665.15,664.6,1.537]
[1748055968298,0.30058463,665.37,664.6,1.537]
[1748055968498,1.57003678,665.36,664.6,1.537]
[1748055968693,1.57003678,665.35,664.6,1.537]
[1748055968896,1.57003678,665.34,664.6,1.537]
[1748055969097,1.57003678,665.33,664.6,1.537]
[1748055969293,1.56969347,665.32,664.6,1.537]
[1748055969494,0.30058463,665.37,664.6,1.537]
[1748055969495,1.56969347,665.31,664.6,1.537]
[1748055969698,1.56969347,665.3,664.6,1.537]
[1748055969899,1.56969347,665.29,664.6,1.537]
[1748055970095,1.56969347,665.28,664.6,1.537]
[1748055970301,1.56969347,665.27,664.6,1.537]
[1748055970497,1.08598861,665.26,664.6,1.537]
[1748055970697,1.08598861,665.25,664.6,1.537]
[1748055970899,1.08598861,665.24,664.64,1.02756597]
[1748055971099,1.08598861,665.23,664.64,1.02756597]
[1748055971300,0.30058463,665.37,664.64,1.02756597]
[1748055971506,1.56875172,665.36,664.64,1.02756597]
[1748055971700,1.56875172,665.35,664.64,1.02756597]
[1748055971907,1.56875172,665.34,664.64,1.02756597]
[1748055972104,1.56875172,665.33,664.64,1.02756597]
[1748055972305,0.30058463,665.37,664.64,1.02756597]
[1748055972606,1.49302841,665.51,664.64,1.02756597]
[1748055972806,1.56795971,665.5,664.64,1.02756597]
[1748055973006,1.56796082,665.49,664.64,1.02756597]
[1748055973207,1.08494289,665.48,664.64,1.02756597]
[1748055973507,1.08494289,665.47,664.64,1.02756597]
[1748055973808,1.08494289,665.46,664.64,1.02756597]
[1748055974106,1.49302841,665.76,664.8,1.02756597]
[1748055974302,1.56596408,665.75,664.8,1.02756597]
[1748055974505,1.56596408,665.74,664.8,1.02756597]
[1748055974703,1.56596408,665.73,664.8,1.02756597]
[1748055974906,1.56596319,665.72,664.8,1.02756597]
[1748055975105,1.56546862,665.71,664.8,1.02756597]
[1748055975305,1.56546862,665.7,664.8,1.02756597]
[1748055975502,1.56546862,665.69,664.8,1.02756597]
[1748055975705,1.56546862,665.68,664.8,1.02756597]
[1748055975907,1.56546862,665.67,664.8,1.02756597]
[1748055976206,1.56546862,665.66,664.8,1.02756597]
[1748055976403,1.56546862,665.65,664.8,1.02756597]
[1748055976606,1.56546862,665.64,664.74,1.02756597]
[1748055976804,1.5645406,665.63,664.74,1.02756597]
[1748055977007,1.5645406,665.62,664.74,1.02756597]
[1748055977206,1.5645406,665.61,664.74,1.02756597]
[1748055977405,1.5645406,665.6,664.74,1.02756597]
[1748055977603,1.5645406,665.59,664.74,1.02756597]
[1748055977801,1.5645406,665.58,664.74,1.02756597]
[1748055978005,1.5645406,665.57,664.74,1.02756597]
[1748055978205,1.0825777,665.56,664.74,1.02756597]
[1748055978505,1.0825777,665.55,664.74,1.02756597]
[1748055978702,1.08175897,665.54,664.74,1.02756597]
[1748055979006,1.49302841,665.81,664.74,1.02756597]
[1748055979206,1.56336113,665.8,664.74,1.02756597]
[1748055979406,1.56336113,665.79,664.74,1.02756597]
[1748055979607,1.56336113,665.78,664.74,1.02756597]
[1748055979803,1.56336113,665.77,664.74,1.02756597]
[1748055980008,1.56336113,665.76,664.72,1.02756597]
[1748055980211,1.56336113,665.75,664.72,1.02756597]
[1748055980405,1.56336113,665.74,664.72,1.02756597]
[1748055980604,1.56306442,665.73,664.72,1.02756597]
[1748055980807,1.56306442,665.72,664.72,1.02756597]
[1748055981009,1.49302841,665.86,664.72,1.02756597]
[1748055981010,1.56306442,665.71,664.72,1.02756597]
[1748055981210,1.56306442,665.7,664.72,1.02756597]
[1748055981410,1.56306442,665.69,664.72,1.02756597]
[1748055981611,1.56306442,665.68,664.72,1.02756597]
[1748055981812,1.56306442,665.67,664.72,1.02756597]
[1748055982012,1.56306442,665.66,664.72,1.02756597]
[1748055982213,1.56306442,665.65,664.72,1.02756597]
[1748055982412,1.08046173,665.64,664.72,1.02756597]
[1748055982607,1.08046173,665.63,664.72,1.02756597]
[1748055982812,1.08046173,665.62,664.72,1.02756597]
[1748055983113,1.08046173,665.61,664.72,1.02756597]
[1748055983314,1.08046173,665.6,664.72,1.02756597]
[1748055983515,1.49302841,665.86,664.72,1.02756597]
[1748055983714,1.56102197,665.85,664.72,1.02756597]
[1748055983913,1.56102197,665.84,664.72,1.02756597]
[1748055984113,1.56100221,665.83,664.72,1.02756597]
[1748055984313,1.56100221,665.82,664.72,1.02756597]
[1748055984513,1.56100221,665.81,664.74,1.02756597]
[1748055984713,1.56100221,665.8,664.74,1.02756597]
[1748055984913,1.56100221,665.79,664.74,1.02756597]
[1748055985114,1.56100221,665.78,664.74,1.02756597]
[1748055985314,0.26154696,665.92,664.74,1.02756597]
[1748055985315,1.56100221,665.77,664.74,1.02756597]
[1748055985516,1.5607764,665.76,664.74,1.02756597]
[1748055985715,1.5607764,665.75,664.74,1.02756597]
[1748055985918,0.48061908,665.74,664.74,1.02756597]
[1748055986110,1.56022642,665.73,664.74,1.02756597]
[1748055986314,1.56022642,665.72,664.74,1.02756597]
[1748055986510,0.26154696,665.92,664.74,1.02756597]
[1748055986718,1.86022269,665.91,664.74,1.02756597]
[1748055986920,1.55988181,665.9,664.74,1.02756597]
[1748055987110,1.86023171,665.89,664.75,1.258]
[1748055987312,1.55988181,665.88,664.75,1.258]
[1748055987515,1.55988181,665.87,664.75,1.258]
[1748055987716,0.3003499,665.89,664.75,1.258]
[1748055987717,1.55988181,665.86,664.75,1.258]
[1748055988013,1.5595764,665.85,664.75,1.258]
[1748055988213,1.5595764,665.84,664.75,1.258]
[1748055988418,1.5595764,665.83,664.75,1.258]
[1748055988619,1.5595764,665.82,664.75,1.258]
[1748055988819,1.5595764,665.81,664.75,1.258]
[1748055989020,1.5595764,665.8,664.75,1.258]
[1748055989220,1.5595764,665.79,664.75,1.258]
[1748055989520,1.5595764,665.78,664.76,1.021]
[1748055989821,1.5595764,665.77,664.76,1.021]
[1748055990022,0.3003499,665.89,664.76,1.021]
[1748055990023,1.5595764,665.76,664.76,1.021]
[1748055990217,1.5595764,665.75,664.76,1.021]
[1748055990421,1.55903408,665.74,664.76,1.021]
[1748055990720,1.55903408,665.73,664.76,1.021]
[1748055990922,1.55903408,665.72,664.76,1.021]
[1748055991121,1.55903408,665.71,664.76,1.021]
[1748055991324,1.55903408,665.7,664.76,1.021]
[1748055991525,1.55903408,665.69,664.76,1.021]
[1748055991825,1.5589099,665.68,664.76,1.021]
[1748055992026,1.5589099,665.67,664.76,1.021]
[1748055992222,1.5589099,665.66,664.76,1.021]
[1748055992525,1.5589099,665.65,664.76,1.021]
[1748055992725,1.5589099,665.64,664.76,1.021]
[1748055992927,1.5589099,665.63,664.76,1.021]
[1748055993123,1.5589099,665.62,664.76,1.021]
[1748055993326,1.5589099,665.61,664.76,1.021]
[1748055993525,1.078519,665.6,664.76,1.021]
[1748055993725,1.078519,665.59,664.76,1.021]
[1748055993927,1.078519,665.58,664.76,1.021]
[1748055994130,1.078519,665.57,664.77,1.347]
[1748055994327,1.078519,665.56,664.77,2.946]
[1748055994522,1.078519,665.55,664.77,2.946]
[1748055994723,0.3003499,665.89,664.77,2.946]
[1748055994924,1.55864246,665.88,664.77,2.946]
[1748055995126,1.85900138,665.87,664.77,2.946]
[1748055995326,1.8589875,665.86,664.77,2.946]
[1748055995529,1.85899202,665.85,664.77,2.946]
[1748055995729,1.85899653,665.84,664.77,2.946]
[1748055995930,1.85900104,665.83,664.77,2.946]
[1748055996130,1.85900555,665.82,664.77,2.946]
[1748055996429,1.55862407,665.81,664.77,2.946]
[1748055996624,1.55862407,665.8,664.77,2.946]
[1748055996833,1.55862407,665.79,664.77,2.946]
[1748055997123,1.55864862,665.78,664.77,2.946]
[1748055997327,1.55864862,665.77,664.77,2.946]
[1748055997523,1.55864862,665.76,664.77,2.946]
[1748055997729,1.55864862,665.75,664.77,2.946]
[1748055997929,1.55864862,665.74,664.77,2.946]
[1748055998129,1.55864862,665.73,664.77,2.946]
[1748055998333,1.55864862,665.72,664.77,2.946]
[1748055998626,1.55864862,665.71,664.77,2.946]
[1748055998830,1.55864862,665.7,664.77,2.946]
[1748055999032,1.55864862,665.69,664.77,2.946]
[1748055999330,1.55864862,665.68,664.77,2.946]
[1748055999530,1.55864862,665.67,664.77,2.946]
[1748055999832,1.55864862,665.66,664.77,2.946]
[1748056000025,1.55864862,665.65,664.77,2.946]
[1748056000230,1.55864862,665.64,664.77,2.946]
[1748056000530,1.55864862,665.63,664.77,2.946]
[1748056000730,1.55876152,665.62,664.77,2.946]
[1748056000929,1.55876152,665.61,664.77,2.946]
[1748056001130,1.07848206,665.6,664.77,2.946]
[1748056001430,1.07848206,665.59,664.77,2.946]
[1748056001626,1.07848206,665.58,664.77,2.946]
[1748056001825,1.07848206,665.57,664.77,2.946]
[1748056002028,1.07848206,665.56,664.77,2.946]
[1748056002230,0.30038148,665.82,664.77,2.946]
[1748056002430,1.5592422,665.81,664.77,2.946]
[1748056002631,1.55924162,665.8,664.77,2.946]
[1748056002930,1.55924162,665.79,664.77,2.946]
[1748056003125,1.55924162,665.78,664.77,2.946]
[1748056003329,1.55924162,665.77,664.77,2.946]
[1748056003629,1.55924162,665.76,664.77,2.946]
[1748056003829,1.55924162,665.75,664.77,2.946]
[1748056004027,1.55924162,665.74,664.77,2.946]
[1748056004230,1.55924162,665.73,664.77,2.946]
[1748056004432,1.55924162,665.72,664.77,2.946]
[1748056004628,1.55924162,665.71,664.77,2.946]
[1748056004833,1.55924162,665.7,664.77,2.946]
[1748056005032,1.55924162,665.69,664.77,2.946]
[1748056005231,1.55924162,665.68,664.77,2.946]
[1748056005427,1.55924162,665.67,664.77,2.946]
[1748056005726,1.55924162,665.66,664.77,2.946]
[1748056005930,1.55924162,665.65,664.77,2.946]
[1748056006126,1.55924162,665.64,664.77,2.946]
[1748056006327,1.07931307,665.63,664.77,1.347]
[1748056006527,1.07931307,665.62,664.77,1.347]
[1748056006734,1.07931307,665.61,664.77,1.347]
[1748056006932,1.07931307,665.6,664.77,1.347]
[1748056007128,1.07931307,665.59,664.77,1.347]
[1748056007330,1.07931307,665.58,664.77,1.347]
[1748056007531,1.07931307,665.57,664.77,1.347]
[1748056007731,1.07981987,665.56,664.77,1.347]
[1748056007927,0.30038148,665.82,664.77,1.347]
[1748056008134,1.56234966,665.81,664.77,1.347]
[1748056008331,1.56234966,665.8,664.77,1.347]
[1748056008532,1.56234966,665.79,664.77,1.347]
[1748056008731,1.56234966,665.78,664.77,1.347]
[1748056008933,1.56234966,665.77,664.77,1.347]
[1748056009134,1.56234966,665.76,664.77,1.347]
[1748056009333,1.56234966,665.75,664.77,1.347]
[1748056009535,1.56234966,665.74,664.77,1.347]
[1748056009730,1.56234966,665.73,664.77,1.347]
[1748056009935,1.5638823,665.72,664.77,1.347]
[1748056010131,1.5638823,665.71,664.77,1.347]
[1748056010329,1.56410699,665.7,664.77,1.347]
[1748056010534,1.56410699,665.69,664.77,1.347]
[1748056010736,1.56410699,665.68,664.77,1.347]
[1748056010935,1.56410699,665.67,664.77,1.347]
[1748056011234,1.56410699,665.66,664.77,1.347]
[1748056011434,1.56410699,665.65,664.77,1.347]
[1748056011635,0.30038148,665.82,664.77,1.347]
[1748056011839,1.5646844,665.81,664.77,1.347]
[1748056012032,1.5646844,665.8,664.77,1.347]
[1748056012236,1.5646844,665.79,664.77,1.347]
[1748056012536,1.5646844,665.78,664.77,1.347]
[1748056012737,1.5646844,665.77,664.77,1.347]
[1748056013037,1.5646844,665.76,664.77,1.347]
[1748056013332,1.5646844,665.75,664.77,1.347]
[1748056013537,1.5646844,665.74,664.77,1.347]
[1748056013737,1.5646844,665.73,664.77,1.347]
[1748056013941,1.5646844,665.72,664.8,1.02756597]
[1748056014134,1.5646844,665.71,664.8,1.02756597]
[1748056014334,1.5646844,665.7,664.8,1.02756597]
[1748056014536,1.5646844,665.69,664.8,1.02756597]
[1748056014736,1.5646844,665.68,664.8,1.02756597]
[1748056014936,1.5646844,665.67,664.8,1.02756597]
[1748056015139,1.5646844,665.66,664.8,1.02756597]
[1748056015341,1.5646844,665.65,664.8,1.02756597]
[1748056015640,1.5646844,665.64,664.8,1.02756597]
[1748056015841,1.5646844,665.63,664.8,1.02756597]
[1748056016040,1.5646844,665.62,664.8,1.02756597]
[1748056016339,1.5646844,665.61,664.8,1.02756597]
[1748056016541,1.5646844,665.6,664.8,1.02756597]
[1748056016740,1.5646844,665.59,664.8,1.02756597]
[1748056016941,1.08178538,665.58,664.8,1.02756597]
[1748056017141,1.49302841,665.76,664.81,1.02756597]
[1748056017449,1.56721273,665.75,664.81,2.68256597]
[1748056017636,1.56721273,665.74,664.81,2.68256597]
[1748056017838,1.56721273,665.73,664.81,2.68256597]
[1748056018037,1.56721273,665.72,664.81,4.07556597]
[1748056018239,1.56721273,665.71,664.81,4.07556597]
[1748056018440,1.56721273,665.7,664.81,4.07556597]
[1748056018640,1.56721273,665.69,664.81,4.07556597]
[1748056018841,1.56721273,665.68,664.81,4.07556597]
[1748056019043,1.56764556,665.67,664.81,4.07556597]
[1748056019242,1.56764556,665.66,664.81,4.07556597]
[1748056019443,1.56764556,665.65,664.81,4.07556597]
[1748056019645,1.56764556,665.64,664.81,4.07556597]
[1748056019944,1.56764556,665.63,664.81,4.07556597]
[1748056020142,1.56764556,665.62,664.81,4.07556597]
[1748056020343,1.56764556,665.61,664.86,1.02756597]
[1748056020544,1.56764556,665.6,664.86,1.02756597]
[1748056020745,1.56778645,665.59,664.86,1.02756597]
[1748056020938,1.08383318,665.58,664.86,1.02756597]
[1748056021143,1.08383318,665.57,664.86,1.02756597]
[1748056021438,1.49302841,665.7,664.86,1.02756597]
[1748056021439,1.08383318,665.56,664.86,1.02756597]
[1748056021641,1.08383318,665.55,664.86,1.02756597]
[1748056021842,1.08383318,665.54,664.86,1.02756597]
[1748056022044,1.08383318,665.53,664.86,1.02756597]
[1748056022245,1.49302841,665.7,664.86,1.02756597]
[1748056022445,1.56889696,665.69,664.86,1.02756597]
[1748056022643,1.56889696,665.68,664.86,1.02756597]
[1748056022840,1.56889696,665.67,664.86,1.02756597]
[1748056023043,1.56889696,665.66,664.86,1.02756597]
[1748056023246,1.56889696,665.65,664.86,1.02756597]
[1748056023447,1.56889696,665.64,664.86,1.02756597]
[1748056023648,1.56889696,665.63,664.86,1.02756597]
[1748056023848,1.56889696,665.62,664.87,1.02756597]
[1748056024050,1.56889696,665.61,664.87,1.02756597]
[1748056024348,1.56889696,665.6,664.87,1.02756597]
[1748056024550,1.56889696,665.59,664.87,1.02756597]
[1748056024748,1.56889696,665.58,664.87,1.02756597]
[1748056024944,1.56889696,665.57,664.87,1.02756597]
[1748056025143,1.569238,665.56,664.87,1.02756597]
[1748056025348,1.08469941,665.55,664.87,1.02756597]
[1748056025549,1.08469941,665.54,664.87,1.02756597]
[1748056025746,1.49302841,665.74,664.88,1.228]
[1748056025951,1.56998099,665.73,664.88,1.228]
[1748056026152,1.56998099,665.72,664.88,1.228]
[1748056026450,1.56998099,665.71,664.88,1.228]
[1748056026651,1.56998099,665.7,664.88,1.228]
[1748056026951,1.56998099,665.69,664.93,1.02756597]
[1748056027152,1.56998099,665.68,664.93,1.02756597]
[1748056027450,1.56998099,665.67,664.93,1.02756597]
[1748056027647,1.57015129,665.66,664.93,1.02756597]
[1748056027851,1.57015129,665.65,664.93,1.02756597]
[1748056028053,1.57015129,665.64,664.93,1.02756597]
[1748056028251,1.57015129,665.63,664.93,1.02756597]
[1748056028446,1.57015129,665.62,664.93,1.02756597]
[1748056028649,1.57015129,665.61,664.93,1.02756597]
[1748056028857,1.57015129,665.6,664.93,1.02756597]
[1748056029047,1.57015129,665.59,664.93,1.02756597]
[1748056029252,1.08562222,665.58,664.93,1.02756597]
[1748056029454,1.08562222,665.57,664.93,1.02756597]
[1748056029654,1.08562222,665.56,664.93,1.02756597]
[1748056029857,1.08562222,665.55,664.93,1.02756597]
[1748056030153,1.08649401,665.54,664.93,1.02756597]
[1748056030348,1.49302841,665.74,664.93,1.02756597]
[1748056030551,1.57134503,665.73,664.98,1.02756597]
[1748056030753,1.57134503,665.72,664.98,1.02756597]
[1748056030955,1.57134503,665.71,664.98,1.02756597]
[1748056031154,1.57134503,665.7,664.98,1.02756597]
[1748056031355,1.57177733,665.69,664.98,1.02756597]
[1748056031654,1.57177733,665.68,664.98,1.02756597]
[1748056031855,1.57177733,665.67,664.98,1.02756597]
[1748056032050,1.57177733,665.66,664.98,1.02756597]
[1748056032252,1.57177733,665.65,664.98,1.02756597]
[1748056032452,1.57177733,665.64,664.98,1.02756597]
[1748056032648,1.57177733,665.63,664.98,1.02756597]
[1748056032855,0.48505887,665.62,664.98,1.02756597]
[1748056033058,1.57229484,665.61,664.98,1.02756597]
[1748056033254,1.57229484,665.6,664.98,1.02756597]
[1748056033456,1.57229484,665.59,664.98,1.02756597]
[1748056033652,1.57229484,665.58,665.02,1.02756597]
[1748056033854,1.57229484,665.57,665.02,1.02756597]
[1748056034054,1.57225666,665.56,665.02,1.02756597]
[1748056034253,1.0870759,665.55,665.02,1.02756597]
[1748056034452,1.0870759,665.54,665.02,1.02756597]
[1748056034655,1.0870759,665.53,665.02,1.02756597]
[1748056034855,1.49302841,665.76,665.02,1.02756597]
[1748056035054,1.57205814,665.75,665.02,1.02756597]
[1748056035258,1.57205814,665.74,665.02,1.02756597]
[1748056035459,1.57205814,665.73,665.02,1.02756597]
[1748056035659,1.57205814,665.72,665.02,1.02756597]
[1748056035859,1.57205814,665.71,665.02,1.02756597]
[1748056036061,1.57205814,665.7,665.02,1.02756597]
[1748056036257,1.57205814,665.69,665.02,1.02756597]
[1748056036457,1.57205814,665.68,665.02,1.02756597]
[1748056036657,1.57205814,665.67,665.02,1.02756597]
[1748056036861,1.57193129,665.66,665.02,1.02756597]
[1748056037060,0.48514583,665.65,665.02,1.02756597]
[1748056037261,1.57192595,665.64,665.02,1.02756597]
[1748056037461,1.57192595,665.63,665.02,1.02756597]
[1748056037760,1.57192595,665.62,665.02,1.02756597]
[1748056037964,1.57192595,665.61,665.02,1.02756597]
[1748056038161,1.57192595,665.6,665.02,1.02756597]
[1748056038361,1.57192595,665.59,665.02,1.02756597]
[1748056038662,1.57171386,665.58,665.02,1.02756597]
[1748056038863,1.57171386,665.57,665.02,1.02756597]
[1748056039161,1.08667427,665.56,665.02,1.02756597]
[1748056039462,1.08667427,665.55,665.03,1.17]
[1748056039760,1.08667427,665.54,665.03,1.17]
[1748056039961,1.49302841,665.75,665.03,1.17]
[1748056040156,1.57160421,665.74,665.03,1.17]
[1748056040360,1.57158311,665.73,665.03,1.17]
[1748056040560,1.57158311,665.72,665.03,1.17]
[1748056040763,1.57158311,665.71,665.03,2.19756597]
[1748056040962,1.57158311,665.7,665.03,2.19756597]
[1748056041161,1.57158311,665.69,665.03,2.19756597]
[1748056041364,1.57158311,665.68,665.03,2.19756597]
[1748056041557,1.57158311,665.67,665.03,2.19756597]
[1748056041759,1.57158311,665.66,665.03,2.19756597]
[1748056041964,1.57158311,665.65,665.03,2.19756597]
[1748056042157,1.08658877,665.64,665.03,2.19756597]
[1748056042361,1.57154067,665.63,665.03,2.19756597]
[1748056042561,1.57154067,665.62,665.03,2.19756597]
[1748056042861,1.57154067,665.61,665.03,2.19756597]
[1748056043161,1.57154067,665.6,665.03,2.19756597]
[1748056043360,1.57154067,665.59,665.03,2.19756597]
[1748056043561,1.08658877,665.58,665.03,2.19756597]
[1748056043762,1.08658877,665.57,665.03,1.17]
[1748056043962,1.08658877,665.56,665.03,1.17]
[1748056044163,1.08639748,665.55,665.03,1.17]
[1748056044462,1.08639748,665.54,665.03,1.17]
[1748056044663,1.49302841,665.74,665.03,1.17]
[1748056044861,1.57127454,665.73,665.03,1.17]
[1748056045060,1.57127454,665.72,665.03,1.17]
[1748056045265,1.57127454,665.71,665.03,1.17]
[1748056045467,1.57127454,665.7,665.03,1.17]
[1748056045765,1.57127454,665.69,665.03,1.17]
[1748056045965,1.57127454,665.68,665.03,1.17]
[1748056046163,1.57127454,665.67,665.03,1.17]
[1748056046364,1.57127454,665.66,665.03,1.17]
[1748056046563,1.57127454,665.65,665.03,1.17]
[1748056046869,1.57118376,665.64,665.03,2.19756597]
[1748056047069,1.57118376,665.63,665.03,2.19756597]
[1748056047364,1.57118376,665.62,665.03,2.19756597]
[1748056047564,1.57118376,665.61,665.03,2.19756597]
[1748056047870,1.57115327,665.6,665.03,2.19756597]
[1748056048168,1.49302841,665.71,665.03,2.19756597]
[1748056048169,1.57115327,665.59,665.03,2.19756597]
[1748056048371,1.57115327,665.58,665.03,2.19756597]
[1748056048670,1.57113816,665.57,665.03,2.19756597]
[1748056048969,1.0862753,665.56,665.03,2.19756597]
[1748056049169,1.0862753,665.55,665.03,2.19756597]
[1748056049470,1.0862753,665.54,665.04,1.213]
[1748056049764,1.0862753,665.53,665.04,1.213]
[1748056049964,1.49302841,665.7,665.04,1.213]
[1748056050169,1.57120718,665.69,665.04,1.213]
[1748056050469,1.49302841,665.7,665.04,1.213]
[1748056050470,1.57120718,665.68,665.04,1.213]
[1748056050671,1.57120718,665.67,665.04,1.213]
[1748056050868,1.57120718,665.66,665.04,1.213]
[1748056051070,1.57120718,665.65,665.04,1.213]
[1748056051266,1.57120718,665.64,665.04,1.213]
[1748056051469,1.57120718,665.63,665.04,1.213]
[1748056051670,1.57120718,665.62,665.04,1.213]
[1748056051871,1.57120718,665.61,665.04,1.213]
[1748056052070,1.57120718,665.6,665.04,1.213]
[1748056052270,1.57120718,665.59,665.04,1.213]
[1748056052466,1.57120718,665.58,665.04,1.213]
[1748056052669,1.57120718,665.57,665.04,1.213]
[1748056052869,1.57120718,665.56,665.04,1.213]
[1748056053069,1.57120718,665.55,665.04,1.213]
[1748056053269,1.57122823,665.54,665.04,1.213]
[1748056053470,1.08638926,665.53,665.04,1.213]
[1748056053775,1.08638926,665.52,665.04,1.213]
[1748056053974,1.08638926,665.51,665.04,1.213]
[1748056054272,1.08638926,665.5,665.04,1.213]
[1748056054472,1.08638926,665.49,665.04,1.213]
[1748056054671,1.08646029,665.48,665.04,1.213]
[1748056054971,1.08646029,665.47,665.04,1.213]
[1748056055170,1.0864845,665.46,665.04,1.213]
[1748056055367,1.08652497,665.45,665.04,1.213]
[1748056055569,1.49302841,665.74,665.04,1.213]
[1748056055772,1.571448,665.73,665.04,1.213]
[1748056055973,1.571448,665.72,665.04,1.213]
[1748056056172,1.49302841,665.69,665.04,1.213]
[1748056056469,1.571448,665.68,665.04,1.213]
[1748056056668,1.571448,665.67,665.05,1.98]
[1748056056877,1.57152617,665.66,665.05,1.98]
[1748056057171,1.57152617,665.65,665.05,1.98]
[1748056057470,1.57152617,665.64,665.05,1.98]
[1748056057670,1.57152617,665.63,665.05,1.98]
[1748056057867,1.57152617,665.62,665.05,1.98]
[1748056058066,1.57152617,665.61,665.05,1.98]
[1748056058270,1.57152617,665.6,665.05,1.98]
[1748056058471,1.57152617,665.59,665.05,1.98]
[1748056058671,1.57177202,665.58,665.05,1.98]
[1748056058873,1.57177202,665.57,665.05,1.98]
[1748056059074,1.57177202,665.56,665.05,1.98]
[1748056059271,1.57177202,665.55,665.05,1.98]
[1748056059474,1.57177202,665.54,665.05,1.98]
[1748056059674,1.57177202,665.53,665.05,1.98]
[1748056059878,1.57177202,665.52,665.05,1.98]
[1748056060076,1.57177202,665.51,665.05,1.98]
[1748056060276,1.57177202,665.5,665.05,1.98]
[1748056060473,1.57182896,665.49,665.05,1.98]
[1748056060679,1.08674864,665.48,665.05,1.98]
[1748056060977,1.08674864,665.47,665.05,1.98]
[1748056061278,1.08683566,665.46,665.05,1.98]
[1748056061477,1.49302841,665.65,665.05,1.98]
[1748056061678,1.57189238,665.64,665.05,1.98]
[1748056061877,1.57189238,665.63,665.05,1.98]